bitfinex/quotes_ETHUSD_20260108
["timestamp","ask_amount","ask_price","bid_price","bid_amount"]
[1767899612062,0.91660485,3125.8,3125.0,10.26773345]
[1767899612248,0.91660485,3125.8,3125.1,0.99948346]
[1767899612450,4.11580164,3125.8,3125.1,0.99948346]
[1767899612638,4.11580164,3125.8,3125.0,4.14459059]
[1767899613258,4.81420693,3125.8,3125.0,4.14459059]
[1767899613439,1.61501014,3125.8,3125.0,4.14459059]
[1767899614249,1.61501014,3125.8,3125.0,7.34459059]
[1767899614547,0.91660485,3125.8,3125.1,0.94459185]
[1767899615731,0.97472816,3126.0,3125.3,0.94459185]
[1767899616048,0.97472816,3126.0,3125.2,3.19979521]
[1767899617732,4.17371813,3126.0,3125.2,3.19979521]
[1767899617932,0.97472816,3125.9,3125.2,3.19979521]
[1767899618140,0.97472816,3125.9,3125.1,4.14444428]
[1767899618951,0.97472816,3125.9,3125.1,7.34434188]
[1767899619156,0.97472816,3125.9,3125.2,0.73443419]
[1767899620029,0.002,3125.6,3125.3,3.19969282]
[1767899621251,0.002,3125.6,3125.2,4.8787721]
[1767899624055,0.97672816,3125.6,3125.2,3.93418025]
[1767899624566,0.97672816,3125.6,3125.2,7.13397546]
[1767899624960,0.97672816,3125.6,3125.2,3.93418025]
[1767899625969,0.002,3125.6,3125.2,4.8787721]
[1767899631074,0.002,3125.6,3125.2,0.73443419]
[1767899631279,0.002,3125.6,3125.1,3.19984206]
[1767899631966,0.002,3125.6,3125.2,3.19977521]
[1767899632468,0.002,3125.6,3125.1,3.19984737]
[1767899633360,0.002,3125.6,3125.2,3.19978451]
[1767899635980,0.002,3125.6,3125.1,3.19985977]
[1767899637454,0.002,3125.6,3125.1,4.22122962]
[1767899639572,0.002,3125.6,3125.1,5.16582147]
[1767899640442,0.97472816,3125.5,3125.1,1.02136985]
[1767899640639,0.97472816,3125.3,3124.9,0.001]
[1767899643042,4.17442631,3125.3,3124.9,0.001]
[1767899643270,0.94999177,3125.2,3124.9,0.001]
[1767899643469,0.94999177,3125.0,3124.2,3.20075872]
[1767899643672,0.3818243,3124.9,3124.2,4.18047777]
[1767899643967,0.94999177,3125.0,3124.2,4.18047777]
[1767899644672,0.94999177,3125.0,3123.9,2.86825125]
[1767899644673,0.94999177,3124.6,3123.8,0.97971905]
[1767899644877,0.94999177,3124.4,3123.6,4.18115094]
[1767899645047,0.94999177,3124.4,3123.6,3.8479703]
[1767899645245,0.94999177,3124.4,3123.7,4.18096974]
[1767899645540,0.94999177,3124.4,3123.8,3.20121816]
[1767899647261,0.94999177,3124.4,3123.7,4.18103365]
[1767899648140,4.11078153,3124.6,3123.7,4.18860051]
[1767899648343,0.91035132,3124.5,3123.7,4.18860051]
[1767899649157,0.91035132,3124.5,3123.7,7.38993226]
[1767899649356,0.90835132,3124.5,3123.7,7.38993226]
[1767899649979,0.91035132,3124.4,3123.7,4.18860051]
[1767899651471,0.91035132,3124.4,3123.7,7.38993226]
[1767899651694,0.91035132,3124.4,3123.7,8.12902549]
[1767899651878,0.91035132,3124.4,3123.7,4.92769374]
[1767899653086,0.91035132,3124.3,3123.5,0.001]
[1767899653385,3.20062624,3124.4,3122.9,3.20212663]
[1767899653386,0.91035132,3123.7,3122.9,3.20212663]
[1767899653545,0.91035132,3123.9,3122.9,7.39156438]
[1767899653745,0.91035132,3123.8,3122.9,7.39156438]
[1767899653958,0.91035132,3123.8,3122.9,4.18941254]
[1767899654549,0.91035132,3123.8,3122.9,7.39156438]
[1767899658189,0.91035132,3123.8,3123.5,0.001]
[1767899659495,0.91035132,3124.0,3123.5,0.001]
[1767899659978,0.91035132,3123.9,3123.5,0.001]
[1767899662571,4.11147948,3123.9,3123.5,0.001]
[1767899662770,1.7255918,3123.9,3123.5,0.001]
[1767899663371,4.92673918,3123.9,3123.5,0.001]
[1767899665402,0.91035132,3123.8,3123.5,0.001]
[1767899667394,3.20133175,3123.7,3123.5,0.001]
[1767899667704,4.11161244,3123.8,3123.5,0.001]
[1767899668504,0.91035132,3123.8,3123.5,0.001]
[1767899670378,0.002,3123.6,3123.5,0.001]
[1767899670582,0.91035132,3123.7,3123.5,0.001]
[1767899672678,4.11170304,3123.7,3123.5,0.001]
[1767899674310,3.20314043,3123.9,3123.5,0.001]
[1767899674511,4.11755016,3123.9,3123.5,0.001]
[1767899674806,0.91440973,3123.8,3123.5,0.001]
[1767899677707,4.11568971,3123.8,3123.5,0.001]
[1767899678091,7.31696969,3123.8,3123.5,0.001]
[1767899678287,0.91440973,3123.7,3123.2,0.001]
[1767899678492,0.91440973,3123.7,3122.6,0.001]
[1767899678692,0.91440973,3123.5,3122.6,0.91253642]
[1767899679091,0.91440973,3123.5,3122.6,0.001]
[1767899679286,0.91440973,3123.5,3122.6,3.2034109]
[1767899679782,0.91440973,3123.4,3122.7,4.11386249]
[1767899681629,4.11610692,3123.4,3122.7,0.91153642]
[1767899681793,3.20169719,3123.4,3122.7,0.91153642]
[1767899681993,3.20169719,3123.4,3122.7,4.1138805]
[1767899682912,7.31759015,3123.5,3122.7,0.91153642]
[1767899683107,0.83363919,3123.4,3122.7,0.91153642]
[1767899683312,0.91440973,3123.3,3122.6,0.001]
[1767899683512,0.91440973,3123.3,3122.6,0.91253642]
[1767899683713,0.83363919,3123.4,3122.7,0.91153642]
[1767899683714,4.03534669,3123.4,3122.7,0.91153642]
[1767899683919,0.83363919,3123.4,3122.7,0.91153642]
[1767899684137,0.83363919,3123.4,3123.0,0.001]
[1767899685325,4.22030995,3123.6,3123.0,0.001]
[1767899685542,1.93321143,3123.6,3123.0,0.001]
[1767899685723,0.91440973,3123.8,3123.0,0.001]
[1767899687818,4.11574148,3123.7,3123.0,0.001]
[1767899688605,3.20133175,3123.7,3123.0,0.91253642]
[1767899689936,3.20133175,3123.7,3123.0,4.11458128]
[1767899690119,4.11574148,3123.7,3123.0,4.11458128]
[1767899690301,0.91440973,3123.6,3123.0,3.20304486]
[1767899690917,0.91440973,3123.6,3123.0,0.001]
[1767899691234,0.73188923,3123.7,3123.0,4.11456747]
[1767899691617,1.64629896,3123.7,3123.0,4.11456747]
[1767899691824,0.91440973,3123.6,3123.0,3.20303105]
[1767899692027,0.91440973,3123.5,3123.0,0.001]
[1767899692334,1.71932354,3123.5,3123.0,0.001]
[1767899692532,0.91440973,3123.5,3123.0,0.001]
[1767899696316,0.002,3123.4,3123.0,0.001]
[1767899698642,0.002,3123.4,3123.0,0.91253642]
[1767899699441,0.002,3123.4,3123.0,0.001]
[1767899700344,0.002,3123.4,3123.0,0.91253642]
[1767899700841,0.91640973,3123.4,3123.0,0.001]
[1767899702117,0.91440973,3123.3,3123.0,0.001]
[1767899702310,0.91440973,3123.3,3121.8,0.16705906]
[1767899702311,0.94234895,3123.1,3121.8,0.16705906]
[1767899702513,0.84,3123.2,3121.8,0.16705906]
[1767899702514,0.94234895,3122.3,3121.8,0.16705906]
[1767899702713,0.94234895,3122.1,3121.7,0.16814207]
[1767899702942,0.94234895,3122.1,3121.3,0.001]
[1767899702943,0.94234895,3122.0,3121.3,0.001]
[1767899703621,0.94234895,3122.0,3121.3,3.20477019]
[1767899704722,0.94234895,3122.0,3121.3,0.001]
[1767899704921,0.94234895,3122.0,3121.3,0.99360714]
[1767899705231,1.15871781,3122.0,3121.3,0.99360714]
[1767899705725,1.15871781,3122.0,3121.3,0.001]
[1767899708640,0.94957585,3121.9,3121.3,0.001]
[1767899709423,9.49812563,3122.0,3121.3,0.001]
[1767899709424,0.94957585,3121.7,3121.3,0.001]
[1767899709616,0.94957585,3121.5,3121.3,0.001]
[1767899710023,0.94957585,3121.3,3120.9,0.001]
[1767899710627,0.94957585,3121.1,3120.6,0.001]
[1767899711248,0.94957585,3121.1,3120.6,3.20551055]
[1767899711451,0.94757585,3121.1,3120.6,0.001]
[1767899712324,0.93021654,3121.7,3120.6,0.001]
[1767899712325,0.94957585,3121.6,3120.7,2.87560511]
[1767899712528,0.94957585,3121.4,3120.7,2.87560511]
[1767899712921,0.94957585,3121.4,3120.6,0.001]
[1767899713547,0.94957585,3121.4,3120.7,0.99151276]
[1767899714423,0.94957585,3121.4,3120.6,0.001]
[1767899714824,0.94957585,3121.3,3120.6,0.001]
[1767899715028,0.94957585,3121.1,3120.6,0.001]
[1767899716750,0.94957585,3121.1,3120.4,6.40943468]
[1767899716751,0.94957585,3120.6,3119.9,3.20517252]
[1767899717052,0.94957585,3120.5,3119.7,3.20538278]
[1767899717258,0.94957585,3120.5,3119.6,0.99151276]
[1767899717259,0.94957585,3120.5,3119.6,5.03800605]
[1767899717767,0.94957585,3120.3,3119.6,5.03800315]
[1767899717946,0.94957585,3120.2,3119.6,3.20552779]
[1767899718256,0.94957585,3120.2,3119.6,6.41106696]
[1767899718455,0.94957585,3120.2,3119.5,3.20558947]
[1767899718637,0.94957585,3120.2,3119.6,3.20549487]
[1767899719045,0.94957585,3120.2,3119.6,6.41103404]
[1767899719249,0.94957585,3120.2,3119.6,3.20549487]
[1767899719424,0.94957585,3120.2,3119.4,1.83251276]
[1767899719425,0.94957585,3120.2,3119.4,5.03817214]
[1767899719620,0.94957585,3120.2,3118.3,3.20684183]
[1767899719621,0.94957585,3120.1,3119.1,3.20605302]
[1767899719923,0.94957585,3119.9,3119.1,3.20605302]
[1767899720349,0.94957585,3119.7,3118.8,4.19780261]
[1767899720536,0.94957585,3119.5,3118.6,0.99151276]
[1767899720736,0.94957585,3119.5,3119.0,3.20614893]
[1767899720973,0.94957585,3119.7,3119.0,6.41230474]
[1767899721332,0.94957585,3119.7,3119.0,3.20614893]
[1767899721533,0.94957585,3119.7,3118.9,3.20622561]
[1767899722032,0.94957585,3119.7,3118.8,6.41272284]
[1767899722231,0.94957585,3119.6,3118.8,6.41272284]
[1767899722855,0.94957585,3120.4,3119.3,2.87560511]
[1767899723354,0.94957585,3120.3,3119.3,2.87560511]
[1767899723729,0.94957585,3120.2,3119.1,2.87560511]
[1767899723929,0.94957585,3120.0,3119.1,2.87560511]
[1767899724131,0.94957585,3119.8,3119.0,3.20613672]
[1767899724325,0.94957585,3119.6,3118.9,3.20621927]
[1767899724558,0.94957585,3119.6,3119.0,3.20606836]
[1767899724772,0.94957585,3119.6,3119.1,3.20605102]
[1767899725753,3.20523093,3119.9,3119.1,3.20605102]
[1767899725754,0.94957585,3119.9,3119.1,6.41210404]
[1767899726071,0.94957585,3119.9,3119.3,3.20584746]
[1767899726373,1.12863344,3119.8,3119.1,3.2059864]
[1767899726731,1.12863344,3119.8,3119.2,3.2059364]
[1767899727232,1.12863344,3119.8,3119.1,3.20601843]
[1767899727554,1.12863344,3119.8,3119.0,6.08167986]
[1767899727749,1.12863344,3119.8,3119.1,3.20603176]
[1767899728248,0.94957585,3119.7,3119.1,3.20603176]
[1767899728448,0.94757585,3119.7,3119.1,3.20603176]
[1767899729354,0.94757585,3119.7,3119.0,2.87560511]
[1767899729355,0.94957585,3119.6,3118.7,0.841]
[1767899729531,0.94957585,3119.6,3118.8,3.20630447]
[1767899729731,0.94957585,3119.5,3118.9,3.20622781]
[1767899729933,0.94957585,3119.5,3118.8,3.20632828]
[1767899730135,0.94957585,3119.5,3118.9,3.20623648]
[1767899730329,0.94957585,3119.5,3118.7,3.20646064]
[1767899730572,0.94957585,3119.5,3118.7,6.41292487]
[1767899730947,0.94957585,3119.5,3118.7,3.20646064]
[1767899731147,0.94957585,3119.4,3118.7,3.20646064]
[1767899732467,0.93614362,3119.3,3118.5,3.20665474]
[1767899732847,3.81174873,3119.0,3117.8,3.79357991]
[1767899733048,3.81174873,3118.6,3117.8,0.16713533]
[1767899733253,2.87560511,3118.0,3117.4,0.002]
[1767899733463,3.81174873,3118.1,3117.4,0.002]
[1767899733667,0.93614362,3118.1,3117.4,0.002]
[1767899733882,0.93614362,3118.1,3117.6,3.20758478]
[1767899734048,0.93614362,3118.1,3117.4,0.002]
[1767899734376,0.17771436,3118.1,3117.8,3.20737399]
[1767899734762,0.841,3118.3,3117.8,3.20737399]
[1767899735080,0.841,3118.3,3117.7,6.08306196]
[1767899735382,0.841,3118.3,3117.7,3.20745685]
[1767899735577,0.841,3118.3,3117.6,3.20755332]
[1767899735784,4.04789833,3118.3,3117.5,0.9179748]
[1767899735984,0.72547252,3118.2,3117.5,4.12567011]
[1767899736283,1.66161614,3118.2,3117.6,3.20757355]
[1767899736581,0.93614362,3118.2,3117.4,3.20980137]
[1767899736959,0.93614362,3118.2,3118.0,0.001]
[1767899738879,0.841,3118.3,3118.0,0.001]
[1767899740479,1.77714362,3118.3,3118.0,0.001]
[1767899740871,4.98406833,3118.3,3118.0,0.001]
[1767899741183,0.93614362,3118.1,3118.0,0.001]
[1767899741351,0.93614362,3118.1,3117.4,0.002]
[1767899741949,0.93614362,3118.1,3117.4,3.20973631]
[1767899742152,0.93614362,3118.1,3117.4,0.002]
[1767899742691,3.37401194,3118.2,3117.0,0.002]
[1767899742692,0.93614362,3117.5,3117.0,0.002]
[1767899742855,3.81174873,3117.3,3117.0,0.002]
[1767899743055,0.93614362,3117.3,3117.0,0.002]
[1767899743865,0.93614362,3117.2,3116.5,0.002]
[1767899744184,0.93614362,3117.0,3116.5,0.002]
[1767899747587,1.35056074,3117.0,3116.5,0.002]
[1767899747797,0.93614362,3117.0,3116.5,0.002]
[1767899748087,0.93614362,3116.9,3116.5,0.002]
[1767899749388,0.93614362,3117.1,3116.5,0.002]
[1767899749769,3.2079686,3117.3,3116.5,0.002]
[1767899750089,4.98597056,3117.4,3116.5,0.002]
[1767899750292,0.49859433,3117.3,3116.5,0.002]
[1767899750884,1.43473795,3117.3,3116.5,0.002]
[1767899751086,4.64272516,3117.3,3116.8,0.002]
[1767899752388,5.48472516,3117.3,3116.8,0.002]
[1767899752591,0.86925521,3117.2,3116.8,0.002]
[1767899755468,4.07727162,3117.2,3116.8,0.002]
[1767899756697,5.01341524,3117.2,3116.8,0.002]
[1767899756873,0.86925521,3117.2,3116.8,0.002]
[1767899757085,4.04993293,3117.3,3116.8,0.002]
[1767899757268,4.98607655,3117.3,3116.8,0.002]
[1767899757675,0.842,3117.3,3116.8,0.002]
[1767899758106,1.77814362,3117.3,3116.8,0.002]
[1767899758410,4.98606689,3117.3,3116.8,0.002]
[1767899758610,0.49860669,3117.2,3116.8,0.002]
[1767899759393,0.842,3117.7,3116.8,0.9199748]
[1767899760088,4.04951093,3117.7,3116.8,0.9199748]
[1767899760399,0.842,3117.7,3116.8,0.9199748]
[1767899760611,4.04949615,3117.7,3116.8,0.9199748]
[1767899760809,1.66139411,3117.7,3116.8,0.9199748]
[1767899761203,2.59753773,3117.7,3116.8,0.9199748]
[1767899761404,2.59753773,3117.7,3116.9,3.20831595]
[1767899761604,1.77814362,3117.7,3116.9,3.20831595]
[1767899761809,0.93614362,3117.7,3116.9,7.3346067]
[1767899762193,0.93614362,3117.7,3116.9,4.12629075]
[1767899762387,0.93614362,3117.7,3116.8,3.21038233]
[1767899763417,4.1437197,3117.7,3116.8,4.16536616]
[1767899763618,4.1437197,3117.7,3116.9,0.95498383]
[1767899763816,0.93614362,3117.7,3116.9,0.95498383]
[1767899764188,0.001,3117.4,3116.9,0.95498383]
[1767899766087,0.98031559,3117.3,3116.8,0.002]
[1767899766288,0.98031559,3116.9,3116.1,0.99423623]
[1767899766495,2.88419948,3116.7,3115.9,4.20353544]
[1767899767103,3.86451507,3116.9,3116.0,3.20923696]
[1767899767300,3.86451507,3116.9,3116.1,3.20912097]
[1767899767506,1.3667671,3116.9,3116.1,3.20912097]
[1767899768114,4.57511837,3116.9,3116.0,7.41272145]
[1767899768923,0.98031559,3116.8,3116.0,4.20347884]
[1767899769537,0.98031559,3116.8,3116.0,0.99423623]
[1767899769697,0.98031559,3116.6,3115.8,0.002]
[1767899770116,0.98031559,3116.4,3115.8,0.002]
[1767899772510,4.18919471,3116.4,3115.8,0.002]
[1767899773251,0.98031559,3116.3,3115.8,0.002]
[1767899773548,0.98031559,3116.0,3115.2,0.002]
[1767899773844,0.98031559,3115.6,3114.6,4.20491398]
[1767899774000,0.98031559,3115.5,3114.7,3.21052517]
[1767899774193,0.842,3115.6,3114.2,0.99423623]
[1767899774194,0.98031559,3115.0,3114.2,0.99423623]
[1767899774429,4.19063732,3115.0,3114.2,0.99423623]
[1767899774731,0.842,3115.1,3114.3,0.99423623]
[1767899775100,4.05219464,3115.1,3114.3,0.99423623]
[1767899775302,0.842,3115.1,3114.3,0.99423623]
[1767899776236,0.842,3115.2,3114.7,0.99423623]
[1767899776527,0.842,3115.2,3114.5,4.20497782]
[1767899776733,0.842,3115.2,3114.7,3.21055935]
[1767899777705,0.842,3115.2,3114.6,4.20487373]
[1767899778164,0.98031559,3115.1,3114.1,3.21118111]
[1767899778317,4.05210891,3115.2,3113.7,3.21156939]
[1767899778318,0.98031559,3114.9,3113.7,3.21156939]
[1767899778517,0.98031559,3114.7,3113.2,0.99423623]
[1767899778809,6.420958,3114.8,3112.7,3.92416444]
[1767899778810,0.98031559,3114.5,3112.7,1.83623623]
[1767899779353,0.98031559,3114.5,3113.5,3.21175861]
[1767899779527,0.98031559,3114.3,3113.5,3.21175861]
[1767899779833,0.98031559,3114.3,3113.4,3.2118835]
[1767899780213,0.18223156,3114.4,3113.4,3.2118835]
[1767899780214,0.18223156,3114.4,3113.4,0.99423623]
[1767899780436,1.02423156,3114.4,3113.5,6.42355767]
[1767899780727,1.02423156,3114.4,3113.5,7.4177939]
[1767899780913,0.842,3114.4,3113.6,0.74177939]
[1767899782331,0.842,3114.4,3113.5,7.4177939]
[1767899783230,0.842,3114.4,3113.5,6.91672547]
[1767899784404,0.98031559,3114.7,3113.6,0.99423623]
[1767899784604,0.98031559,3114.7,3113.5,2.71066975]
[1767899784605,0.98031559,3114.5,3113.5,2.71066975]
[1767899784815,4.19120693,3114.4,3113.3,3.21199736]
[1767899785034,0.74020061,3114.3,3113.3,7.41825941]
[1767899785235,0.842,3114.6,3113.4,0.99423623]
[1767899785738,4.05269129,3114.6,3113.4,0.99423623]
[1767899786030,1.82231559,3114.6,3113.4,0.99423623]
[1767899786229,0.98031559,3114.5,3113.4,0.99423623]
[1767899786434,0.98031559,3114.5,3113.6,0.99423623]
[1767899787026,0.98031559,3114.5,3113.7,3.21161319]
[1767899787539,4.19112747,3114.5,3113.7,3.21161319]
[1767899789237,4.19112747,3114.5,3113.6,4.20591678]
[1767899789805,4.19112747,3114.5,3113.8,0.002]
[1767899790009,0.50331275,3114.4,3113.8,0.002]
[1767899790205,1.48362834,3114.4,3113.8,0.002]
[1767899791132,4.69452411,3114.4,3113.8,0.002]
[1767899791336,0.98031559,3114.3,3113.8,0.002]
[1767899791545,0.98031559,3114.3,3113.5,0.002]
[1767899791706,0.98031559,3114.3,3112.2,0.002]
[1767899791707,10.13600006,3114.4,3112.5,0.99423623]
[1767899791708,0.98031559,3114.1,3112.5,0.99423623]
[1767899791907,0.98031559,3113.9,3112.5,1.83623623]
[1767899792110,0.98031559,3113.9,3112.6,0.99423623]
[1767899792537,0.98031559,3113.9,3113.1,3.21218458]
[1767899792762,1.11163157,3114.2,3113.1,0.90424981]
[1767899792925,0.97876316,3114.4,3113.3,0.90424981]
[1767899793238,0.97876316,3114.4,3113.2,3.21212899]
[1767899793239,0.97876316,3114.3,3113.2,3.21212899]
[1767899793410,0.97876316,3114.3,3113.0,3.21232202]
[1767899793606,0.97876316,3114.1,3112.5,0.90424981]
[1767899793841,0.97876316,3113.9,3112.5,0.90424981]
[1767899794039,0.97876316,3113.9,3111.9,0.90424981]
[1767899794408,0.97876316,3113.9,3112.5,3.21281507]
[1767899794644,0.97876316,3113.7,3112.5,3.21281507]
[1767899794810,0.97876316,3113.5,3112.2,3.21514718]
[1767899795010,0.97876316,3113.3,3112.2,0.002]
[1767899795443,0.97876316,3112.9,3111.1,0.0221629]
[1767899795606,0.97876316,3112.7,3111.1,0.0221629]
[1767899795814,0.843,3112.6,3111.5,0.90424981]
[1767899796121,0.843,3112.6,3111.8,3.21353458]
[1767899796441,0.843,3112.6,3111.7,3.21365869]
[1767899796607,1.02517632,3112.6,3111.8,3.21355773]
[1767899796810,4.23796481,3112.6,3111.6,3.21377151]
[1767899797046,0.97876316,3112.5,3111.6,3.21377151]
[1767899797214,0.97876316,3112.5,3111.5,3.21384548]
[1767899797836,0.97876316,3112.5,3111.5,6.42772945]
[1767899798018,0.5216728,3112.4,3111.5,6.42772945]
[1767899798232,1.50043596,3112.4,3111.5,6.42772945]
[1767899799162,0.97876316,3112.3,3110.9,0.90424981]
[1767899799422,0.97876316,3112.3,3109.8,0.16721405]
[1767899799423,0.25952256,3110.8,3108.4,0.06091696]
[1767899799530,3.83115504,3109.2,3109.1,0.06091696]
[1767899799843,0.843,3109.6,3109.2,1.41091812]
[1767899800157,0.843,3109.9,3109.0,0.06753715]
[1767899800357,0.843,3110.0,3109.0,0.06753715]
[1767899800558,1.14597366,3110.5,3109.2,0.06753715]
[1767899800871,0.1672105,3110.5,3109.4,0.06753715]
[1767899801027,0.09537194,3110.5,3109.9,0.06753715]
[1767899801226,0.09537194,3110.5,3109.0,0.06753715]
[1767899801227,1.01895945,3110.5,3110.2,0.06753715]
[1767899801426,3.21493264,3110.5,3110.2,0.06753715]
[1767899801655,3.95577402,3110.5,3110.2,0.06753715]
[1767899801853,7.17070666,3110.5,3110.0,0.06753715]
[1767899802041,3.95577402,3110.5,3110.1,0.06753715]
[1767899802432,0.74084138,3110.5,3110.4,0.06753715]
[1767899802637,4.19357759,3110.6,3110.4,0.06753715]
[1767899802855,0.02034674,3110.9,3110.4,0.06753715]
[1767899803248,6.44940878,3110.9,3110.0,0.06753715]
[1767899803556,3.23487776,3110.9,3110.4,0.002]
[1767899803759,0.02034674,3110.9,3110.4,0.002]
[1767899803958,3.23486069,3110.9,3110.4,0.002]
[1767899804159,0.32348607,3110.8,3110.4,0.002]
[1767899804583,3.23486069,3110.9,3110.4,0.002]
[1767899804584,0.02034674,3110.9,3110.5,0.06753715]
[1767899804741,3.23485646,3110.9,3110.5,0.06753715]
[1767899804942,1.14657176,3111.5,3110.8,0.06753715]
[1767899805165,3.21307732,3112.3,3110.9,0.06753715]
[1767899805166,6.42756138,3111.6,3110.9,0.06753715]
[1767899805370,0.97876316,3111.5,3110.6,0.08035614]
[1767899805682,1.71939561,3111.4,3110.6,0.08035614]
[1767899805866,2.56239561,3111.4,3110.6,0.08035614]
[1767899806163,3.97331372,3111.4,3110.6,0.08035614]
[1767899807078,3.21409057,3111.3,3110.4,0.08235614]
[1767899807539,3.97331372,3111.4,3110.8,0.08035614]
[1767899807540,2.15155056,3111.4,3110.8,0.08035614]
[1767899807735,1.41091811,3111.4,3111.0,0.08035614]
[1767899808448,4.62491633,3111.4,3111.0,0.08035614]
[1767899808636,7.83891455,3111.4,3110.8,0.08035614]
[1767899808835,5.40880779,3111.4,3110.8,0.08035614]
[1767899809270,5.40880779,3111.4,3110.6,0.08035614]
[1767899809478,8.62280601,3111.4,3110.8,0.08035614]
[1767899809882,1.41091811,3111.4,3111.0,0.08035614]
[1767899810175,1.41091811,3111.4,3111.2,0.08035614]
[1767899810978,1.82176316,3112.1,3111.2,0.08035614]
[1767899810979,6.42656992,3112.1,3111.2,0.08035614]
[1767899811690,0.97876316,3112.4,3111.4,0.08035614]
[1767899811691,4.00584105,3112.2,3111.4,0.08035614]
[1767899811857,6.4264127,3112.2,3111.4,0.08035614]
[1767899812181,6.4264127,3112.2,3111.4,0.07035614]
[1767899813362,6.42611572,3112.3,3111.4,0.07035614]
[1767899815085,3.21305786,3112.3,3111.4,0.07035614]
[1767899815283,3.63223996,3112.3,3111.6,0.08035614]
[1767899815482,6.84529782,3112.3,3111.6,0.08035614]
[1767899815860,0.4191821,3112.3,3111.8,0.08035614]
[1767899816061,3.63224311,3112.3,3111.8,0.08035614]
[1767899816483,3.63225015,3112.3,3111.8,0.08035614]
[1767899816881,0.97876316,3112.1,3111.3,0.08035614]
[1767899817563,0.001,3111.9,3111.3,0.08035614]
[1767899819089,0.001,3111.9,3111.5,0.08035614]
[1767899820702,0.001,3111.9,3111.7,0.08035614]
[1767899821766,0.001,3111.9,3111.1,3.21624398]
[1767899821767,0.001,3111.9,3111.1,0.002]
[1767899822289,0.97311864,3111.9,3111.1,0.002]
[1767899823993,0.97211864,3111.7,3111.1,0.002]
[1767899824288,1.0612841,3111.6,3111.1,0.002]
[1767899825616,0.97672603,3111.5,3111.1,0.002]
[1767899825918,3.21398727,3111.4,3111.1,0.002]
[1767899826413,6.42797454,3111.4,3111.1,0.002]
[1767899826913,0.97672603,3111.3,3110.7,0.08035614]
[1767899827101,1.71719609,3111.3,3110.7,0.08035614]
[1767899827493,1.71719609,3111.3,3110.4,3.21701157]
[1767899827494,0.97672603,3111.1,3110.4,0.002]
[1767899827693,0.97672603,3111.1,3109.6,0.08035614]
[1767899827898,0.97672603,3110.9,3109.6,0.08035614]
[1767899828107,2.03871879,3110.8,3109.6,0.08035614]
[1767899828322,0.843,3110.7,3109.6,0.08035614]
[1767899829008,0.843,3110.7,3109.8,0.08035614]
[1767899829408,0.843,3110.7,3110.0,0.08035614]
[1767899830627,1.06199276,3110.8,3110.2,0.08035614]
[1767899830833,6.42922614,3110.8,3110.2,0.08035614]
[1767899832321,6.42880102,3111.0,3110.0,0.9822716]
[1767899833312,6.42880102,3111.0,3110.2,0.08035614]
[1767899834029,3.21419388,3111.2,3110.4,0.9822716]
[1767899834245,0.001,3111.3,3110.8,0.08035614]
[1767899834521,0.001,3111.3,3111.0,0.08035614]
[1767899835422,3.21449527,3111.9,3111.0,0.9822716]
[1767899835761,7.7261661,3111.9,3110.8,0.844]
[1767899835900,0.97672603,3111.8,3110.7,0.08035614]
[1767899836513,6.42735482,3111.7,3110.7,0.08035614]
[1767899836814,6.42735482,3111.7,3110.5,0.9822716]
[1767899836815,0.97672603,3111.6,3110.5,0.9822716]
[1767899837022,0.97672603,3111.4,3110.4,0.92435614]
[1767899837220,0.97672603,3111.4,3110.4,4.13936115]
[1767899837919,0.97672603,3111.4,3110.5,3.21491243]
[1767899838117,0.97672603,3111.4,3110.6,3.21479916]
[1767899838314,0.74040809,3111.5,3110.6,3.21479916]
[1767899838618,3.21398727,3111.4,3110.5,4.11683267]
[1767899838790,3.21398727,3111.4,3110.5,4.94245168]
[1767899838992,3.21398727,3111.4,3110.6,0.9822716]
[1767899839193,0.844,3111.7,3110.8,0.08035614]
[1767899839424,0.844,3111.7,3110.8,0.9822716]
[1767899839731,0.43800237,3111.7,3110.8,0.9822716]
[1767899839890,3.21357413,3111.8,3111.0,0.9822716]
[1767899840092,3.53592535,3111.9,3111.2,0.08035614]
[1767899840541,6.74940117,3111.9,3111.2,0.08035614]
[1767899840821,0.97672603,3111.8,3110.8,0.08035614]
[1767899840993,2.07068633,3111.7,3110.8,0.08035614]
[1767899841191,2.07068633,3111.7,3109.9,0.002]
[1767899841192,0.97672603,3111.6,3109.9,0.002]
[1767899841435,0.97672603,3111.2,3110.1,0.08035614]
[1767899841638,0.844,3111.1,3110.1,0.08035614]
[1767899841948,0.1820726,3111.1,3110.1,4.19758225]
[1767899842228,1.0939603,3111.7,3110.3,0.9822716]
[1767899842393,0.844,3111.6,3110.5,0.08035614]
[1767899842723,6.42776794,3111.5,3110.5,0.08035614]
[1767899843420,6.42776794,3111.5,3110.3,0.9822716]
[1767899843826,0.97672603,3111.4,3110.3,3.29545892]
[1767899844022,0.97672603,3111.3,3110.3,3.95457091]
[1767899844225,0.97672603,3111.3,3110.1,3.21526175]
[1767899844399,0.97672603,3111.3,3110.1,0.08035614]
[1767899844594,1.82072603,3111.3,3110.2,3.21522712]
[1767899844826,3.21419388,3111.2,3110.3,0.08035614]
[1767899845914,6.42838776,3111.2,3110.3,0.08035614]
[1767899846118,7.68933151,3111.2,3110.3,0.08035614]
[1767899846515,4.47513763,3111.2,3110.3,0.08035614]
[1767899846715,0.001,3111.4,3110.5,0.9822716]
[1767899847117,0.001,3111.4,3110.8,0.9822716]
[1767899848124,0.001,3111.4,3111.0,0.08035614]
[1767899849939,0.001,3111.4,3111.0,3.29474347]
[1767899850133,0.001,3111.9,3111.2,0.08035614]
[1767899850298,0.32242644,3111.9,3111.2,0.08035614]
[1767899851133,0.001,3111.9,3111.2,7.41055988]
[1767899851336,0.001,3111.9,3111.0,0.9822716]
[1767899851510,0.001,3111.9,3111.2,3.29453944]
[1767899851711,0.001,3111.9,3111.3,0.90191546]
[1767899852036,0.001,3111.9,3111.2,3.29453944]
[1767899852037,0.001,3111.9,3111.2,4.1964549]
[1767899852220,0.001,3111.9,3111.2,5.02986265]
[1767899852409,0.001,3111.9,3111.2,8.24405653]
[1767899852948,0.001,3111.9,3111.3,0.97908294]
[1767899853107,0.001,3111.9,3111.4,3.21398727]
[1767899853934,1.80803451,3113.1,3111.7,0.97908294]
[1767899854114,0.96403451,3113.0,3111.7,0.97908294]
[1767899854315,0.96403451,3113.0,3111.6,0.08035614]
[1767899854522,0.96403451,3113.0,3111.6,1.05943908]
[1767899855036,0.96403451,3113.0,3111.8,1.05943908]